{"text_format":"3","workbook":"xlsx","n_sheets":3,"sheets":["Опис на наследство","Активи от наследство","Задължения при наследство"],"not_rendered":{"defined_names":1},"read":"whole","date_system":"1900"}

{"sheet":"Опис на наследство","index":0,"n_rows":45,"n_cols":35,"rows_kept":45,"merged":[[0,1,0,30],[0,31,0,39],[1,1,5,39],[6,1,6,6],[6,7,6,39],[7,1,7,6],[7,7,7,39],[9,1,9,6],[9,7,9,39],[10,1,10,6],[10,7,10,39],[11,1,11,6],[11,7,11,20],[11,21,11,26],[11,27,11,30],[11,31,11,33],[11,34,11,39],[12,1,12,6],[12,7,12,20],[12,21,12,26],[13,1,13,6],[13,7,13,20],[13,21,13,26],[14,1,14,6],[14,7,14,20],[14,21,14,26],[15,1,15,6],[17,1,17,39],[18,1,18,6],[18,7,18,12],[18,13,18,15],[18,16,18,18],[18,19,18,26],[18,27,18,31],[18,32,18,39],[19,1,19,6],[19,7,19,12],[19,13,19,15],[19,16,19,18],[19,19,19,26],[19,27,19,31],[19,32,19,39],[20,1,20,6],[20,7,20,12],[20,13,20,15],[20,16,20,18],[20,19,20,26],[20,27,20,31],[20,32,20,39],[21,1,21,6],[21,7,21,12],[21,13,21,15],[21,16,21,18],[21,19,21,26],[21,27,21,31],[21,32,21,39],[22,1,22,6],[22,7,22,12],[22,13,22,15],[22,16,22,18],[22,19,22,26],[22,27,22,31],[22,32,22,39],[23,1,23,6],[23,7,23,12],[23,13,23,15],[23,16,23,18],[23,19,23,26],[23,27,23,31],[23,32,23,39],[25,1,25,39],[26,1,26,6],[26,7,26,12],[26,13,26,18],[26,19,26,26],[26,27,26,31],[26,32,26,39],[27,1,27,6],[27,7,27,12],[27,13,27,18],[27,19,27,26],[27,27,27,31],[27,32,27,39],[28,1,28,6],[28,7,28,12],[28,13,28,18],[28,19,28,26],[28,27,28,31],[28,32,28,39],[29,1,29,6],[29,7,29,12],[29,13,29,18],[29,19,29,26],[29,27,29,31],[29,32,29,39],[30,1,30,6],[30,7,30,12],[30,13,30,18],[30,19,30,26],[30,27,30,31],[30,32,30,39],[31,1,31,6],[31,7,31,12],[31,13,31,18],[31,19,31,26],[31,27,31,31],[31,32,31,39],[33,1,33,12],[33,14,33,39],[34,1,34,12],[34,14,34,21],[34,22,34,25],[34,26,34,33],[34,34,34,39],[35,2,35,12],[35,14,35,21],[35,22,35,25],[35,26,35,33],[35,34,35,39],[36,2,36,12],[36,14,36,21],[36,22,36,25],[36,26,36,33],[36,34,36,39],[37,2,37,12],[37,14,37,21],[37,22,37,25],[37,26,37,33],[37,34,37,39],[38,2,38,12],[38,14,38,21],[38,22,38,25],[38,26,38,33],[38,34,38,39],[39,2,39,12],[39,14,39,21],[39,22,39,25],[39,26,39,33],[39,34,39,39],[40,2,40,12],[40,14,40,21],[40,22,40,25],[40,26,40,33],[40,34,40,39],[41,2,41,12],[41,14,41,21],[41,22,41,25],[41,26,41,33],[41,34,41,39],[42,2,42,12],[42,14,42,21],[42,22,42,25],[42,26,42,33],[42,34,42,38],[43,2,43,12],[43,14,43,21],[43,22,43,25],[43,26,43,33],[43,34,43,39],[44,2,44,12],[44,14,44,21],[44,22,44,25],[44,26,44,33],[44,34,44,39]]}
[]
[null,"Опис на наследство"]
[]
[]
[]
[]
[null,"Име на изпълнителя(ите)",{"$nulls":5},"Алан Матсън"]
[null,"Информация за връзка",{"$nulls":5},"4567 Main St, Buffalo, NY 98052"]
[]
[null,"Име на наследника",{"$nulls":5},"Огъст Бергкуист"]
[null,"Улица и номер",{"$nulls":5},"6789 Main St"]
[null,"Град",{"$nulls":5},"Buffalo",{"$nulls":13},"Област",{"$nulls":5},"НЮ ЙОРК",{"$nulls":3},"Пощенски код",null,null,98052]
[null,"Номер на социална осигуровка",{"$nulls":5},"AAA-GG-SSSS",{"$nulls":13},"Професия",{"$nulls":5},"Зъболекар"]
[null,"Дата на раждане",{"$nulls":5},"1965-12-08",{"$nulls":13},"Място на раждане",{"$nulls":5},"НЮ ЙОРК"]
[null,"Дата на смърт",{"$nulls":5},{"$f":"TODAY()-3","v":"2022-05-10"},{"$nulls":13},"Място на смъртта",{"$nulls":5},"НЮ ЙОРК"]
[null,"Допълнителна информация"]
[]
[null,"  Съпруг/а, деца и други зависими лица"]
[null,"Име",{"$nulls":5},"Връзка",{"$nulls":5},"Зависимо лице",null,null,"Възраст",null,null,"Адрес",{"$nulls":7},"Телефонен номер",{"$nulls":4},"Имейл"]
[null,"Мириям Нилсон",{"$nulls":5},"Личен представител",{"$nulls":5},"Не",null,null,30]
[null,"Виктория Линдквист",{"$nulls":5},"Съпруг/а",{"$nulls":5},"Да",null,null,35]
[null,"Александър Мартенсон",{"$nulls":5},"Дете",{"$nulls":5},"Да",null,null,12]
[]
[]
[]
[null,"Професионални съветници"]
[null,"Тип съветник",{"$nulls":5},"Лице за контакт",{"$nulls":5},"Фирма",{"$nulls":5},"Адрес",{"$nulls":7},"Телефонен номер",{"$nulls":4},"Имейл"]
[null,"Счетоводител"]
[null,"Адвокат/нотариус"]
[null,"Други"]
[]
[]
[]
[null,"  Контролен списък за изпита",{"$nulls":12},"  Описи на наследство"]
[null,"    Елементи от контролния списък",{"$nulls":12},"Активи от наследство",{"$nulls":7},"Стойност (лв.)",{"$nulls":3},"Задължения при наследство",{"$nulls":7},"Стойност (лв.)"]
[null,"✔","Последна воля, завещание или други документи",{"$nulls":11},{"$f":"'Активи от наследство'!B12","v":"Банкови сметки"},{"$nulls":7},{"$f":"'Активи от наследство'!G20","v":{"v":0,"d":"0.00 лв."}},{"$nulls":3},{"$f":"'Задължения при наследство'!B11","v":"Ипотеки"},{"$nulls":7},{"$f":"'Задължения при наследство'!G18","v":{"v":0,"d":"0.00 лв."}}]
[null,"✔","Споразумение за наем на сейф и ключове ",{"$nulls":11},{"$f":"'Активи от наследство'!B22","v":"Лични инвестиции"},{"$nulls":7},{"$f":"'Активи от наследство'!G30","v":{"v":0,"d":"0.00 лв."}},{"$nulls":3},{"$f":"'Задължения при наследство'!B21","v":"Лични заеми и кредитни линии"},{"$nulls":7},{"$f":"'Задължения при наследство'!G28","v":{"v":0,"d":"0.00 лв."}}]
[null,"✖","Пароли за компютри и онлайн акаунти",{"$nulls":11},{"$f":"'Активи от наследство'!B32","v":"Бизнес интереси"},{"$nulls":7},{"$f":"'Активи от наследство'!G40","v":{"v":0,"d":"0.00 лв."}},{"$nulls":3},{"$f":"'Задължения при наследство'!B31","v":"Бизнес интереси"},{"$nulls":7},{"$f":"'Задължения при наследство'!G38","v":{"v":0,"d":"0.00 лв."}}]
[null,"✔","Споразумения за тръстове приживе",{"$nulls":11},{"$f":"'Активи от наследство'!B42","v":"Недвижими имоти"},{"$nulls":7},{"$f":"'Активи от наследство'!G50","v":{"v":0,"d":"0.00 лв."}},{"$nulls":3},{"$f":"'Задължения при наследство'!B41","v":"Кредитни карти"},{"$nulls":7},{"$f":"'Задължения при наследство'!G48","v":{"v":0,"d":"0.00 лв."}}]
[null,"✔","Животозастраховане, здравна осигуровка/полици за злополуки и застраховки",{"$nulls":11},{"$f":"'Активи от наследство'!B52","v":"Пенсионни планове"},{"$nulls":7},{"$f":"'Активи от наследство'!G60","v":{"v":0,"d":"0.00 лв."}},{"$nulls":3},{"$f":"'Задължения при наследство'!B51","v":"Други задължения"},{"$nulls":7},{"$f":"'Задължения при наследство'!G58","v":{"v":0,"d":"0.00 лв."}}]
[null,"✔","Финансови отчети",{"$nulls":11},{"$f":"'Активи от наследство'!B62","v":"Застраховка"},{"$nulls":7},{"$f":"'Активи от наследство'!G70","v":{"v":0,"d":"0.00 лв."}}]
[null,"✔","Данъчни декларации за доходи за последните три години",{"$nulls":11},{"$f":"'Активи от наследство'!B72","v":"Частни заеми и ипотеки"},{"$nulls":7},{"$f":"'Активи от наследство'!G80","v":{"v":0,"d":"0.00 лв."}}]
[null,"✔","Сертификати за раждане и смърт",{"$nulls":11},{"$f":"'Активи от наследство'!B82","v":"Интерес към други имоти и тръстове"},{"$nulls":7},{"$f":"'Активи от наследство'!G90","v":{"v":0,"d":"0.00 лв."}}]
[null,"✖","Документи, ипотеки и декларации за лизинг",{"$nulls":11},{"$f":"'Активи от наследство'!B92","v":"Лични ефекти и други активи"},{"$nulls":7},{"$f":"'Активи от наследство'!G100","v":{"v":0,"d":"0.00 лв."}}]
[null,"☐","Неплатени сметки и бележки",{"$nulls":11},"Общо активи",{"$nulls":7},{"$f":"'Активи от наследство'!G10","v":{"v":0,"d":"0.00 лв."}},{"$nulls":3},"Общо задължения",{"$nulls":7},{"$f":"SUM(AI36:AN44)","v":{"v":0,"d":"0.00 лв."}}]

{"sheet":"Активи от наследство","index":1,"n_rows":100,"n_cols":8,"rows_kept":100,"merged":[[0,1,0,7],[1,1,5,7],[6,1,7,7],[11,1,11,7],[12,1,12,7],[21,1,21,7],[22,1,22,7],[31,1,31,7],[32,1,32,7],[41,1,41,7],[42,1,42,7],[51,1,51,7],[52,1,52,7],[61,1,61,7],[62,1,62,7],[71,1,71,7],[72,1,72,7],[81,1,81,7],[82,1,82,7],[91,1,91,7],[92,1,92,7]]}
[]
[null,"Активи от наследство"]
[]
[]
[]
[]
[null,"Използвайте този работен лист, за да създадете опис на активите на пробната версия. Ще трябва да определите пазарната стойност на всеки актив на недвижима собственост към датата на смъртта. Прегледайте всички записи, включително финансовите отчети, застраховките и данъчните декларации, за да получите пазарни стойности. Може също да се наложи да получите оценка на лични предмети (т.е. художествени произведения, колекции, антики и т.н.). Не забравяйте да включите и всички чужди активи в описа, като например недвижими имоти, ценни книжа или бизнес интереси в чужбина. Може да поискате професионална помощ, за да получите точната стойност на пазара за чуждестранни активи."]
[]
[]
[null,"Общо активи",{"$nulls":4},{"$f":"tblБанковиАкаунти[[#Totals],[Салдо ]]+tblЛичниИнвестиции[[#Totals],[Пазарна стойност]]+tblБизнесИнтереси[[#Totals],[Стойност ]]+tblНедвижимаСобственост[[#Totals],[Пазарна цена]]+tblПенсионниПланове[[#Totals],[Стойност ]]+tblЗастраховка[[#Totals],[Парична стойност ]]+tblИпотеки[[#Totals],[Дължим остатък ]]+tblТръстове[[#Totals],[Сума на разпределението]]+tblДругиАктиви[[#Totals],[Стойност ]]","v":{"v":0,"d":"0.00 лв."}}]
[]
[null,"Банкови сметки"]
[null,"Изброяване на всички банкови сметки, включително пари в брой, пътни чекове, парични нареждания и сметки в търговски банки, спестовни банки, кредитни съюзи и др. Включете всички имена, изброени в сметката, и действителната парична стойност, която се отнася до точната сума в долари и промяната на сумата в момента на смъртта."]
[null,"Финансова институция ","Адрес","Телефон","Номер на сметка","Тип акаунт","Салдо ","Бележки"]
[]
[]
[]
[]
[]
[null,"Общо",{"$nulls":4},{"$f":"SUBTOTAL(109,tblБанковиАкаунти[[Салдо ]])","v":{"v":0,"d":"0.00 лв."}}]
[]
[null,"Лични инвестиции"]
[null,"Изброяване на паричните сметки, маржовите акаунтите, акаунтите за данъчни спестявания, регистрираните планове за спестяване при пенсиониране (RRSP), регистрираните фондове за доход при пенсиониране (RRIFs), заключени RRS, заключени RRSP, доживотни средства за доходи, фондове за предписани доходи при пенсиониране, регистрирани планове за образователни спестявания, анюитети и др."]
[null,"Фирма","Адрес","Телефон","Номер на сметка","Бенефициент","Пазарна стойност","Бележки"]
[]
[]
[]
[]
[]
[null,"Общо",{"$nulls":4},{"$f":"SUBTOTAL(109,tblЛичниИнвестиции[Пазарна стойност])","v":{"v":0,"d":"0.00 лв."}}]
[]
[null,"Бизнес интереси"]
[null,"Изброяване на всички бизнес интереси, включително еднолични търговци, професионални практики, корпорации, партньорства, фирми и партньорства с ограничена отговорност, съвместни предприятия и други непублични търговски юридически лица. "]
[null,"Име на фирма","Адрес","Телефон","Контакт","Тип","Стойност ","Бележки"]
[]
[]
[]
[]
[]
[null,"Общо",{"$nulls":4},{"$f":"SUBTOTAL(109,tblБизнесИнтереси[[Стойност ]])","v":{"v":0,"d":"0.00 лв."}}]
[]
[null,"Недвижими имоти"]
[null,"Избройте всички недвижими имоти, върху които наследникът и/или преживелият съпруг/а или партньор на наследодателя е собственик, съсобственик или имат интерес по какъвто и да е начин, включително имоти, закупени в комплекси за отдих и временни дялове. Получаване на копия от нотариалните актове. Предоставете описание на недвижимата собственост с нейния физически адрес. Впишете справедливата пазарна стойност на имота въз основа на последната оценка от данъчния оценител."]
[null,"Адрес","Титър, в притежание на","Телефон","Контакт","Покупна цена","Пазарна цена","Бележки"]
[]
[]
[]
[]
[]
[null,"Общо",{"$nulls":3},{"$f":"SUBTOTAL(109,tblНедвижимаСобственост[Покупна цена])","v":{"v":0,"d":"0.00 лв."}},{"$f":"SUBTOTAL(109,tblНедвижимаСобственост[Пазарна цена])","v":{"v":0,"d":"0.00 лв."}}]
[]
[null,"Пенсионни планове"]
[null,"Изброяване на дефинирани ползи, парични покупки или дефинирани приноси, DPSP или групови RRSP и т.н."]
[null,"Фирма","Телефон","Тип план","Бенефициент","Имейл","Стойност ","Бележки"]
[]
[]
[]
[]
[]
[null,"Общо",{"$nulls":4},{"$f":"SUBTOTAL(109,tblПенсионниПланове[[Стойност ]])","v":{"v":0,"d":"0.00 лв."}}]
[]
[null,"Застраховка"]
[null,"Включват тръстове приживе, животозастрахователни полици с упоменати получатели и инвестиционни акаунти, които са прехвърлени при смърт, като активи, които не са наследствени. Ако съдът се допита за тези активи, изпълнителят може лесно да прегледа списъка с активи, които не са наследствени, и да обясни липсата им от предварителния опис."]
[null,"Емитент","Номер на полица","Телефон","Бенефициент","Номинална стойност ","Парична стойност ","Бележки"]
[]
[]
[]
[]
[]
[null,"Общо",{"$nulls":3},{"$f":"SUBTOTAL(109,tblЗастраховка[[Номинална стойност ]])","v":{"v":0,"d":"0.00 лв."}},{"$f":"SUBTOTAL(109,tblЗастраховка[[Парична стойност ]])","v":{"v":0,"d":"0.00 лв."}}]
[]
[null,"Частни заеми и ипотеки"]
[null,"Изброяване на частни заеми и ипотеки, при които покойникът е бил заемодател."]
[null,"Име на заемополучателя","Адрес","Телефон","Тип","Първоначална сума","Дължим остатък ","Бележки"]
[]
[]
[]
[]
[]
[null,"Общо",{"$nulls":3},{"$f":"SUBTOTAL(109,tblИпотеки[Първоначална сума])","v":{"v":0,"d":"0.00 лв."}},{"$f":"SUBTOTAL(109,tblИпотеки[[Дължим остатък ]])","v":{"v":0,"d":"0.00 лв."}}]
[]
[null,"Интерес към други имоти и тръстове"]
[null,"Изброяване на активите, регистрирани на името на покойното лице, което се държи от името на други лица (например активи, притежавани от лицето, на което са отнети права, като доверено лице или активи, притежавани чрез пълномощно)."]
[null,"Име на недвижима собственост/тръст","Име на изпълнителя/довереното лице","Телефон","Адрес","Имейл","Сума на разпределението","Бележки"]
[]
[]
[]
[]
[]
[null,"Общо",{"$nulls":4},{"$f":"SUBTOTAL(109,tblТръстове[Сума на разпределението])","v":{"v":0,"d":"0.00 лв."}}]
[]
[null,"Лични ефекти и други активи"]
[null,"Изброяване на всички лични елементи например; коли, бижута, изкуство, антики, мебели. Включете елементи, които може да са били съхранявани в сейф или на съхранение."]
[null,"Описание на елемента","Местоположение","Телефон","Контакт","Бенефициент","Стойност ","Бележки"]
[]
[]
[]
[]
[]
[null,"Общо",{"$nulls":4},{"$f":"SUBTOTAL(109,tblДругиАктиви[[Стойност ]])","v":{"v":0,"d":"0.00 лв."}}]

{"sheet":"Задължения при наследство","index":2,"n_rows":58,"n_cols":8,"rows_kept":58,"merged":[[0,1,0,7],[1,1,5,7],[6,1,6,7],[10,1,10,7],[20,1,20,7],[30,1,30,7],[40,1,40,7],[50,1,50,7]]}
[]
[null,"Задължения при наследство"]
[]
[]
[]
[]
[null,"Използвайте този работен лист, за да заснемете подробностите за задълженията на имотите – както вътрешни, така и външни. Ще изисквате оценка на всяко задължение към датата на смъртта."]
[]
[null,"Общо активи",{"$nulls":4},{"$f":"SUM(G18,G28,G38,G48,G58)","v":{"v":0,"d":"0.00 лв."}}]
[]
[null,"Ипотеки"]
[null,"Финансова институция ","Адрес","Телефон","Титър, в притежание на","Номер на сметка","Салдо ","Бележки"]
[]
[]
[]
[]
[]
[null,"Общо",{"$nulls":4},{"$f":"SUBTOTAL(109,tblБанковиАкаунти2[[Салдо ]])","v":{"v":0,"d":"0.00 лв."}}]
[]
[]
[null,"Лични заеми и кредитни линии"]
[null,"Финансова институция","Адрес","Телефон"," Номер на сметка","Тип","Салдо ","Бележки"]
[]
[]
[]
[]
[]
[null,"Общо",{"$nulls":4},{"$f":"SUBTOTAL(109,tblЛичниИнвестиции3[[Салдо ]])","v":{"v":0,"d":"0.00 лв."}}]
[]
[]
[null,"Бизнес интереси"]
[null,"Име на фирма","Адрес"," Телефон"," Контакт","Тип","Стойност ","Бележки"]
[]
[]
[]
[]
[]
[null,"Общо",{"$nulls":4},{"$f":"SUBTOTAL(109,tblБизнесИнтереси4[[Стойност ]])","v":{"v":0,"d":"0.00 лв."}}]
[]
[]
[null,"Кредитни карти"]
[null,"Фирма за кредитни карти","Адрес на фирма","Телефон","Идентификационен номер","Дата на изтичане на срока ","Салдо ","Бележки"]
[]
[]
[]
[]
[]
[null,"Общо",{"$nulls":4},{"$f":"SUBTOTAL(109,tblНедвижимаСобственост5[[Салдо ]])","v":{"v":0,"d":"0.00 лв."}}]
[]
[]
[null,"Други задължения"]
[null,"Описание на елемента","Местоположение","Телефон","Контакт","Бенефициент","Стойност ","Бележки"]
[]
[]
[]
[]
[]
[null,"Общо",{"$nulls":4},{"$f":"SUBTOTAL(109,tblПенсионниПланове6[[Стойност ]])","v":{"v":0,"d":"0.00 лв."}}]